[Event "Rapid della Domenica"]
[Site "Chess.com"]
[Date "2020.05.03"]
[Round "6"]
[White "giulioscaglione"]
[Black "fausto2p"]
[Result "0-1"]
[WhiteElo "1352"]
[BlackElo "996"]
[TimeControl "720+3"]
[EndTime "8:22:34 PDT"]
[Termination "fausto2p ha vinto per scaccomatto"]

1. b3 {[%clk 0:12:02.9]} 1... d5 {[%clk 0:11:55.9]} 2. Bb2 {[%clk 0:12:04.3]}
2... Nf6 {[%clk 0:11:57.2]} 3. e3 {[%clk 0:12:05.9]} 3... e6 {[%clk 0:11:54.6]}
4. Ne2 {[%clk 0:12:07.2]} 4... c5 {[%clk 0:11:53.9]} 5. Ng3 {[%clk 0:12:07.7]}
5... Nc6 {[%clk 0:11:55.4]} 6. Bb5 {[%clk 0:12:08.7]} 6... Bd7 {[%clk
0:11:39.6]} 7. d3 {[%clk 0:12:09.4]} 7... a6 {[%clk 0:11:38.4]} 8. Bxc6 {[%clk
0:12:10.8]} 8... Bxc6 {[%clk 0:11:38.1]} 9. Nd2 {[%clk 0:12:12.5]} 9... Bd6
{[%clk 0:11:26.3]} 10. O-O {[%clk 0:12:13.6]} 10... O-O {[%clk 0:11:14.3]} 11.
e4 {[%clk 0:11:33]} 11... dxe4 {[%clk 0:11:03.6]} 12. Ndxe4 {[%clk 0:11:33.3]}
12... Nxe4 {[%clk 0:10:58.2]} 13. Nxe4 {[%clk 0:11:31.3]} 13... Bxe4 {[%clk
0:10:36.5]} 14. dxe4 {[%clk 0:11:31.8]} 14... Qc7 {[%clk 0:10:36.6]} 15. g3
{[%clk 0:10:46]} 15... Rad8 {[%clk 0:10:25]} 16. Qg4 {[%clk 0:10:39]} 16... Be5
{[%clk 0:09:56.8]} 17. Bxe5 {[%clk 0:10:28.3]} 17... Qxe5 {[%clk 0:09:57.3]} 18.
c4 {[%clk 0:10:24.9]} 18... Rd4 {[%clk 0:09:55.8]} 19. Rfe1 {[%clk 0:10:01.2]}
19... Rfd8 {[%clk 0:09:52.2]} 20. Qh4 {[%clk 0:09:43.9]} 20... h6 {[%clk
0:09:01]} 21. f4 {[%clk 0:08:11.6]} 21... Qd6 {[%clk 0:08:25.3]} 22. e5 {[%clk
0:08:02.2]} 22... Qc6 {[%clk 0:08:26.7]} 23. Qg4 {[%clk 0:07:11.7]} 23... Rd2
{[%clk 0:08:26.7]} 24. Re2 {[%clk 0:07:01.8]} 24... Rd1+ {[%clk 0:08:19]} 25.
Re1 {[%clk 0:06:45.4]} 25... Rxe1+ {[%clk 0:08:05.3]} 26. Rxe1 {[%clk 0:06:36]}
26... Rd2 {[%clk 0:08:03.4]} 27. Re2 {[%clk 0:06:22.6]} 27... Rd1+ {[%clk
0:08:01.2]} 28. Kf2 {[%clk 0:06:23.6]} 28... Qh1 {[%clk 0:07:36.9]} 29. Ke3
{[%clk 0:06:08.5]} 29... Qg1+ {[%clk 0:07:30]} 30. Ke4 {[%clk 0:05:36.5]} 30...
Rd4+ {[%clk 0:07:25.7]} 31. Kf3 {[%clk 0:05:29.1]} 31... Rd3+ {[%clk 0:07:10.8]}
32. Ke4 {[%clk 0:05:16.4]} 32... Qd4# {[%clk 0:07:00.7]} 0-1

[Event "Rapid della Domenica"]
[Site "Chess.com"]
[Date "2020.05.03"]
[Round "6"]
[White "SanSecondoPR"]
[Black "FrancescoZasa"]
[Result "1-0"]
[WhiteElo "1296"]
[BlackElo "633"]
[TimeControl "720+3"]
[EndTime "8:24:29 PDT"]
[Termination "SanSecondoPR ha vinto per tempo"]

1. e4 {[%clk 0:12:02.8]} 1... e6 {[%clk 0:10:55.3]} 2. d4 {[%clk 0:12:00.7]}
2... d6 {[%clk 0:10:48.9]} 3. Nf3 {[%clk 0:11:58.1]} 3... Nf6 {[%clk 0:10:41.7]}
4. Nc3 {[%clk 0:11:55.6]} 4... Na6 {[%clk 0:10:32.3]} 5. Bg5 {[%clk 0:11:53.7]}
5... d5 {[%clk 0:10:13.9]} 6. e5 {[%clk 0:11:52.7]} 6... Nb4 {[%clk 0:09:50.7]}
7. exf6 {[%clk 0:11:50.2]} 7... gxf6 {[%clk 0:09:40]} 8. Bh4 {[%clk 0:11:49.4]}
8... Bh6 {[%clk 0:09:37.8]} 9. Ne5 {[%clk 0:11:43.4]} 9... fxe5 {[%clk
0:09:32.8]} 10. Bxd8 {[%clk 0:11:39.3]} 10... Kxd8 {[%clk 0:09:29.3]} 11. a3
{[%clk 0:11:35.3]} 11... Nc6 {[%clk 0:09:16.1]} 12. Qh5 {[%clk 0:11:33]} 12...
Nxd4 {[%clk 0:09:13.8]} 13. Bd3 {[%clk 0:11:25.7]} 13... Bd7 {[%clk 0:08:53.9]}
14. Qxh6 {[%clk 0:11:24.5]} 14... Kc8 {[%clk 0:08:47.6]} 15. Qf6 {[%clk
0:11:22.4]} 15... Rd8 {[%clk 0:08:42.5]} 16. Qxe5 {[%clk 0:11:21.5]} 16... c5
{[%clk 0:08:36.2]} 17. O-O {[%clk 0:11:13.8]} 17... Ba4 {[%clk 0:08:28.4]} 18.
b3 {[%clk 0:11:06.5]} 18... Bc6 {[%clk 0:07:48.9]} 19. Bb5 {[%clk 0:11:02.9]}
19... Bxb5 {[%clk 0:07:46]} 20. Nxb5 {[%clk 0:11:00.6]} 20... Nxc2 {[%clk
0:07:42.2]} 21. Rac1 {[%clk 0:10:55.8]} 21... Nd4 {[%clk 0:07:39.1]} 22. Rxc5+
{[%clk 0:10:54.1]} 22... Nc6 {[%clk 0:07:33.6]} 23. Nd6+ {[%clk 0:10:49]} 23...
Kd7 {[%clk 0:07:25.2]} 24. Nxb7 {[%clk 0:10:44.5]} 24... Rdb8 {[%clk 0:05:47.6]}
25. Qd6+ {[%clk 0:10:38.9]} 25... Ke8 {[%clk 0:05:40.3]} 26. Qxc6+ {[%clk
0:10:36.3]} 26... Kf8 {[%clk 0:05:28.1]} 27. Qd7 {[%clk 0:10:23.2]} 27... Kg7
{[%clk 0:00:10.7]} 28. Nd6 {[%clk 0:10:20.9]} 28... Kg6 {[%clk 0:00:06.9]} 29.
Qxf7+ {[%clk 0:10:19.7]} 29... Kg5 {[%clk 0:00:05.5]} 30. Qg7+ {[%clk
0:10:20.2]} 30... Kf4 {[%clk 0:00:06.6]} 31. g3+ {[%clk 0:10:15.4]} 31... Kf3
{[%clk 0:00:06.2]} 32. Qf6+ {[%clk 0:10:13.3]} 1-0

[Event "Rapid della Domenica"]
[Site "Chess.com"]
[Date "2020.05.03"]
[Round "6"]
[White "donaldnecesito"]
[Black "sergiodone"]
[Result "1-0"]
[WhiteElo "1640"]
[BlackElo "1487"]
[TimeControl "720+3"]
[EndTime "8:31:16 PDT"]
[Termination "donaldnecesito ha vinto per abbandono"]

1. e4 {[%clk 0:12:02.9]} 1... c5 {[%clk 0:11:33.5]} 2. Nf3 {[%clk 0:12:04.2]}
2... d6 {[%clk 0:11:30.3]} 3. d4 {[%clk 0:12:04.1]} 3... cxd4 {[%clk 0:11:30.8]}
4. Nxd4 {[%clk 0:12:04]} 4... e6 {[%clk 0:11:32.1]} 5. Nc3 {[%clk 0:12:01]} 5...
a6 {[%clk 0:11:32.9]} 6. Be3 {[%clk 0:11:49.9]} 6... Be7 {[%clk 0:11:33]} 7. Qd2
{[%clk 0:11:50.3]} 7... Qc7 {[%clk 0:11:34.4]} 8. O-O-O {[%clk 0:11:49.7]} 8...
b5 {[%clk 0:11:35.3]} 9. f3 {[%clk 0:11:01.7]} 9... Bb7 {[%clk 0:11:36.5]} 10.
h4 {[%clk 0:10:36.8]} 10... Nd7 {[%clk 0:11:37.8]} 11. g4 {[%clk 0:10:38.3]}
11... Rc8 {[%clk 0:11:38.1]} 12. Kb1 {[%clk 0:10:39.6]} 12... h6 {[%clk
0:11:36.8]} 13. Rg1 {[%clk 0:10:40.5]} 13... Ngf6 {[%clk 0:11:20.2]} 14. g5
{[%clk 0:10:39.1]} 14... hxg5 {[%clk 0:11:20.5]} 15. Bxg5 {[%clk 0:10:31.8]}
15... Nc5 {[%clk 0:10:44.4]} 16. Bh3 {[%clk 0:10:22.2]} 16... b4 {[%clk
0:10:44.7]} 17. Nce2 {[%clk 0:10:06]} 17... a5 {[%clk 0:10:17.9]} 18. Nb5 {[%clk
0:09:46.8]} 18... Qc6 {[%clk 0:10:10.5]} 19. Nxd6+ {[%clk 0:09:47.4]} 19... Bxd6
{[%clk 0:10:11.2]} 20. Qxd6 {[%clk 0:09:48.2]} 20... Qxd6 {[%clk 0:09:34.2]} 21.
Rxd6 {[%clk 0:09:48.1]} 21... Ncd7 {[%clk 0:09:08.6]} 22. Nf4 {[%clk 0:09:19.3]}
22... O-O {[%clk 0:08:48.9]} 23. h5 {[%clk 0:09:09.3]} 23... Rc6 {[%clk
0:08:40.5]} 24. Rxc6 {[%clk 0:08:56]} 24... Bxc6 {[%clk 0:08:40.7]} 25. Rd1
{[%clk 0:08:37.5]} 25... Kh8 {[%clk 0:08:40.6]} 26. Rd6 {[%clk 0:08:18]} 26...
Ne5 {[%clk 0:08:38]} 27. h6 {[%clk 0:07:58.3]} 27... Bb5 {[%clk 0:08:33]} 28.
Bg2 {[%clk 0:07:28.4]} 28... Nc4 {[%clk 0:08:27.6]} 29. Rd1 {[%clk 0:05:47]}
29... Ne3 {[%clk 0:08:24.8]} 30. Rh1 {[%clk 0:05:12.7]} 30... Nxg2 {[%clk
0:07:49.4]} 31. Nxg2 {[%clk 0:05:06.8]} 31... Re8 {[%clk 0:07:32.1]} 32. hxg7+
{[%clk 0:04:51.4]} 32... Kxg7 {[%clk 0:07:33]} 33. Nf4 {[%clk 0:04:42.3]} 33...
Rd8 {[%clk 0:05:08.5]} 34. e5 {[%clk 0:04:39.7]} 34... Nd5 {[%clk 0:03:07.1]}
35. Nh5+ {[%clk 0:04:38.7]} 35... Kg6 {[%clk 0:02:58.1]} 36. Bxd8 {[%clk
0:04:39.9]} 36... Kf5 {[%clk 0:02:50.5]} 37. Nf6 {[%clk 0:04:33.1]} 37... Kxe5
{[%clk 0:02:45.6]} 38. Nxd5 {[%clk 0:04:34.8]} 38... exd5 {[%clk 0:02:46.3]} 39.
Bxa5 {[%clk 0:04:34]} 39... f5 {[%clk 0:02:36.7]} 40. Bxb4 {[%clk 0:04:32.9]}
40... Kf4 {[%clk 0:02:31.1]} 41. Rd1 {[%clk 0:04:27.9]} 41... Bc6 {[%clk
0:02:28.1]} 42. Rd3 {[%clk 0:04:26.3]} 42... Bb7 {[%clk 0:02:06.8]} 43. Bd6+
{[%clk 0:04:27.9]} 43... Kg5 {[%clk 0:02:01.7]} 44. f4+ {[%clk 0:04:29.4]} 44...
Kg4 {[%clk 0:01:59.2]} 45. Be5 {[%clk 0:04:30.3]} 45... Bc6 {[%clk 0:01:44.3]}
46. b3 {[%clk 0:04:29.3]} 46... Bb5 {[%clk 0:01:43.2]} 47. Rxd5 {[%clk
0:04:30.2]} 47... Be2 {[%clk 0:01:40]} 48. c4 {[%clk 0:04:28.6]} 48... Bf3
{[%clk 0:01:39]} 49. b4 {[%clk 0:04:28.1]} 49... Be4+ {[%clk 0:01:08.8]} 50. Kb2
{[%clk 0:04:28.4]} 50... Kf3 {[%clk 0:01:10.7]} 51. Kc3 {[%clk 0:04:25.9]} 51...
Ke3 {[%clk 0:01:11.9]} 52. b5 {[%clk 0:04:25.2]} 1-0

[Event "Rapid della Domenica"]
[Site "Chess.com"]
[Date "2020.05.03"]
[Round "6"]
[White "fisherpez"]
[Black "OMatteoWuO"]
[Result "1-0"]
[WhiteElo "1623"]
[BlackElo "1201"]
[TimeControl "720+3"]
[EndTime "8:33:13 PDT"]
[Termination "fisherpez ha vinto per abbandono"]

1. e3 {[%clk 0:12:02.9]} 1... Nf6 {[%clk 0:11:25.1]} 2. b3 {[%clk 0:12:03.3]}
2... g6 {[%clk 0:11:20.2]} 3. Bb2 {[%clk 0:12:05.2]} 3... Bg7 {[%clk 0:11:21.2]}
4. Nc3 {[%clk 0:12:07.4]} 4... d6 {[%clk 0:11:17.6]} 5. Be2 {[%clk 0:12:09.5]}
5... Nbd7 {[%clk 0:11:15]} 6. h4 {[%clk 0:12:10.9]} 6... O-O {[%clk 0:11:09.8]}
7. h5 {[%clk 0:12:12.1]} 7... e5 {[%clk 0:11:04.9]} 8. Nf3 {[%clk 0:12:10]} 8...
Nxh5 {[%clk 0:11:03.8]} 9. Rxh5 {[%clk 0:12:09.6]} 9... gxh5 {[%clk 0:10:56.3]}
10. Ng1 {[%clk 0:12:11]} 10... Nf6 {[%clk 0:10:54.5]} 11. Bxh5 {[%clk
0:12:11.6]} 11... Nxh5 {[%clk 0:10:54.9]} 12. Qxh5 {[%clk 0:12:11]} 12... f5
{[%clk 0:10:50.2]} 13. O-O-O {[%clk 0:12:09.5]} 13... Rf6 {[%clk 0:10:48.2]} 14.
Nge2 {[%clk 0:11:55.4]} 14... Rh6 {[%clk 0:10:47.2]} 15. Qf3 {[%clk 0:11:55.5]}
15... Bd7 {[%clk 0:10:26.1]} 16. Qxb7 {[%clk 0:11:37]} 16... a6 {[%clk
0:09:33.9]} 17. Qb4 {[%clk 0:10:43.5]} 17... c5 {[%clk 0:09:25.8]} 18. Qa3
{[%clk 0:10:27.4]} 18... Bb5 {[%clk 0:09:01.8]} 19. Ng3 {[%clk 0:10:14.7]} 19...
f4 {[%clk 0:08:21.1]} 20. Nf5 {[%clk 0:10:04.9]} 20... Rf6 {[%clk 0:08:10.9]}
21. e4 {[%clk 0:09:42.7]} 21... Bc6 {[%clk 0:07:15.2]} 22. f3 {[%clk 0:09:34.2]}
22... a5 {[%clk 0:06:37.8]} 23. Ba1 {[%clk 0:08:29.1]} 23... a4 {[%clk
0:06:36.1]} 24. Qb2 {[%clk 0:07:59.9]} 24... a3 {[%clk 0:06:26.8]} 25. Qb1
{[%clk 0:08:00.2]} 25... Rb8 {[%clk 0:06:15.3]} 26. Ne2 {[%clk 0:07:55]} 26...
c4 {[%clk 0:06:06]} 27. d3 {[%clk 0:07:02.8]} 27... cxd3 {[%clk 0:04:47.1]} 28.
Rxd3 {[%clk 0:06:58.1]} 28... Bb5 {[%clk 0:04:45.8]} 29. Rd2 {[%clk 0:06:50.3]}
29... Qb6 {[%clk 0:04:32.2]} 30. c3 {[%clk 0:04:37.5]} 30... Bxe2 {[%clk
0:04:27.1]} 31. Rxe2 {[%clk 0:04:31.9]} 31... Qg1+ {[%clk 0:04:27.9]} 32. Kc2
{[%clk 0:04:26.3]} 32... Qxb1+ {[%clk 0:04:25.9]} 33. Kxb1 {[%clk 0:04:27.7]}
33... Rb6 {[%clk 0:04:10.5]} 34. c4 {[%clk 0:04:18.5]} 34... Rg6 {[%clk
0:04:10.8]} 35. Ne7+ {[%clk 0:04:17.3]} 35... Kf7 {[%clk 0:04:10.8]} 36. Nxg6
{[%clk 0:04:18.6]} 36... Kxg6 {[%clk 0:04:10.4]} 37. Bc3 {[%clk 0:04:13.4]}
37... Bf8 {[%clk 0:04:08.5]} 38. Kc2 {[%clk 0:04:13.1]} 38... h5 {[%clk
0:04:09]} 39. Re1 {[%clk 0:04:13.3]} 39... Be7 {[%clk 0:04:06.5]} 40. Rh1 {[%clk
0:04:11.8]} 40... Bd8 {[%clk 0:04:04.4]} 41. Ba5 {[%clk 0:04:10.7]} 41... Rb8
{[%clk 0:04:05]} 42. Bc3 {[%clk 0:04:04.3]} 42... Bb6 {[%clk 0:04:00.9]} 43. Rd1
{[%clk 0:04:02.2]} 43... Bc5 {[%clk 0:03:59.5]} 44. Ba5 {[%clk 0:03:54.4]} 44...
Rb7 {[%clk 0:03:42.2]} 45. Bc3 {[%clk 0:03:43.5]} 45... Rb8 {[%clk 0:03:42.5]}
46. Be1 {[%clk 0:03:41.8]} 46... Rb7 {[%clk 0:03:25.1]} 47. Bh4 {[%clk
0:03:38.5]} 47... Rd7 {[%clk 0:03:25.8]} 48. Rd5 {[%clk 0:03:35.8]} 48... Rb7
{[%clk 0:03:01.6]} 49. Rd1 {[%clk 0:03:32]} 49... Rd7 {[%clk 0:02:58.8]} 50. Be1
{[%clk 0:03:29.9]} 50... Rb7 {[%clk 0:02:57.9]} 51. Bc3 {[%clk 0:03:30]} 51...
Rd7 {[%clk 0:02:57]} 52. Bxe5 {[%clk 0:03:29.8]} 52... h4 {[%clk 0:02:31.2]} 53.
Bxf4 {[%clk 0:03:29.3]} 53... Kh5 {[%clk 0:02:28.1]} 54. Rh1 {[%clk 0:03:17.6]}
54... Rg7 {[%clk 0:02:27.9]} 55. g3 {[%clk 0:03:03]} 55... Bf2 {[%clk
0:02:17.6]} 56. Rxh4+ {[%clk 0:03:02]} 56... Kg6 {[%clk 0:02:18]} 57. Rg4+
{[%clk 0:03:03]} 57... Kh7 {[%clk 0:02:19.3]} 58. Rxg7+ {[%clk 0:03:03.8]} 58...
Kxg7 {[%clk 0:02:21.5]} 59. Bxd6 {[%clk 0:03:05.3]} 59... Kf6 {[%clk 0:02:21.6]}
60. c5 {[%clk 0:02:58.8]} 1-0